bitfinex-derivatives/quotes_ETHF0:USTF0_20241007
["timestamp","ask_amount","ask_price","bid_price","bid_amount"]
[1728344590154,0.41192,2428.0,2427.9,0.41192]
[1728344593253,0.82384,2428.0,2427.9,0.41192]
[1728344595368,0.41192,2428.0,2427.9,0.41192]
[1728344595966,0.82384,2428.0,2427.9,0.41192]
[1728344596360,0.4118,2428.1,2427.8,0.4036]
[1728344596565,0.82371,2428.1,2428.0,0.41192]
[1728344597059,0.82371,2428.1,2428.0,0.82282]
[1728344599261,0.4118,2428.1,2428.0,0.82282]
[1728344599463,0.4118,2428.1,2427.2,5.59343084]
[1728344599665,0.4118,2428.1,2427.7,0.3926]
[1728344599666,0.41195,2427.8,2427.7,0.3926]
[1728344599973,0.41195,2427.8,2427.4,2.60604]
[1728344599974,3.2078,2427.9,2427.5,4.90880445]
[1728344600173,0.41199,2427.6,2427.5,0.41199]
[1728344600770,0.82119,2427.6,2427.5,0.41199]
[1728344601072,0.4092,2427.6,2427.5,0.41199]
[1728344604575,0.4092,2427.6,2427.4,0.41201]
[1728344605079,0.4092,2427.6,2427.5,0.412]
[1728344605974,0.83767,2427.7,2427.5,0.412]
[1728344606963,0.4257,2427.7,2427.6,0.41199]
[1728344607275,0.41194,2427.9,2427.7,0.41196]
[1728344607475,0.41194,2427.9,2427.8,1.24095]
[1728344609371,0.41194,2427.9,2427.8,0.829]
[1728344610365,0.83292,2428.0,2427.9,0.41194]
[1728344610566,1.1257,2428.3,2427.8,0.829]
[1728344610567,0.41191,2428.1,2427.8,0.829]
[1728344610773,0.41191,2428.1,2428.0,0.41192]
[1728344613181,0.41192,2428.0,2427.9,0.41192]
[1728344613774,0.3877,2428.2,2428.0,0.41191]
[1728344613775,0.41191,2428.1,2428.0,0.41191]
[1728344613976,0.41193,2428.0,2427.9,0.41193]
[1728344614174,0.3877,2428.2,2427.5,1.126]
[1728344614374,0.41195,2427.8,2427.7,0.80297]
[1728344614679,0.41195,2427.8,2427.7,0.391]
[1728344615381,0.41195,2427.8,2427.7,0.80297]
[1728344615382,0.82765,2427.8,2427.7,0.80297]
[1728344615776,0.82765,2427.8,2427.7,0.391]
[1728344616680,0.82765,2427.8,2427.7,0.80297]
[1728344618783,0.82765,2427.8,2427.6,0.4174]
[1728344618784,0.41197,2427.7,2427.6,0.41198]
[1728344618972,0.82766,2427.8,2427.6,0.41199]
[1728344619484,0.82766,2427.8,2427.6,0.41198]
[1728344619983,0.82766,2427.8,2427.7,0.41197]
[1728344620776,0.82766,2427.8,2427.5,0.8123]
[1728344620777,0.41197,2427.7,2427.6,0.41198]
[1728344621283,0.82766,2427.8,2427.6,0.41198]
[1728344621482,0.82766,2427.8,2427.6,0.41199]
[1728344622483,0.82766,2427.8,2427.6,1.89199]
[1728344623385,0.4157,2427.8,2427.7,0.41197]
[1728344623979,0.4157,2427.8,2427.7,1.89197]
[1728344628282,0.82385,2428.0,2427.9,0.41194]
[1728344628480,0.81142,2428.0,2427.9,0.41194]
[1728344631488,1.22334,2428.0,2427.9,0.41194]
[1728344634287,0.81142,2428.0,2427.9,0.41194]
[1728344634489,1.22334,2428.0,2427.9,0.41194]
[1728344637791,0.81142,2428.0,2427.9,0.41194]
[1728344637989,0.81142,2428.0,2427.9,1.89194]
[1728344638289,0.41192,2428.0,2427.9,12.01034]
[1728344638515,0.096,2428.3,2428.2,0.41188]
[1728344638694,0.531,2428.5,2428.4,0.41185]
[1728344638695,0.42,2428.5,2428.4,0.41185]
[1728344638900,0.42,2428.5,2428.4,1.89185]
[1728344639389,0.83183,2428.5,2428.4,1.89185]
[1728344639593,0.42,2428.5,2428.4,1.89185]
[1728344639983,4.23727,2428.8,2428.4,11.5976]
[1728344639984,3.2078,2428.8,2428.4,11.5976]
[1728344640183,0.4143,2428.9,2428.8,0.41178]
[1728344640391,0.4145,2429.1,2429.0,0.41175]
[1728344640593,0.096,2429.4,2429.0,1.48]
[1728344640594,0.4143,2429.2,2429.0,1.48]
[1728344640788,0.4143,2429.2,2428.9,1.48]
[1728344640995,0.4143,2429.2,2428.7,0.41179]
[1728344640996,0.41175,2429.0,2428.7,0.41179]
[1728344641194,0.41175,2429.0,2428.8,0.41178]
[1728344641696,0.79984,2429.1,2428.9,1.48]
[1728344642089,0.3881,2429.1,2428.4,4.28695393]
[1728344642290,0.41181,2428.7,2428.5,0.3898]
[1728344642489,0.41181,2428.7,2428.5,0.80163]
[1728344642490,0.8024,2428.6,2428.5,0.80163]
[1728344644295,0.4143,2428.6,2428.5,4.01163]
[1728344644494,0.4033,2429.0,2428.5,7.7174]
[1728344644713,0.50774,2429.1,2428.9,0.41177]
[1728344644997,4.0121,2429.2,2429.0,0.3865]
[1728344645295,4.42383,2429.2,2429.0,0.3865]
[1728344645593,4.42383,2429.2,2429.0,0.79824]
[1728344646301,4.42383,2429.2,2429.0,0.3865]
[1728344646499,4.42383,2429.2,2429.1,0.41173]
[1728344646799,0.8043,2429.2,2429.1,0.41173]
[1728344648197,1.21601,2429.2,2429.1,0.41173]
[1728344649696,0.41173,2429.1,2429.0,0.79824]
[1728344649898,1.21602,2429.2,2429.1,0.41173]
[1728344650094,0.8043,2429.2,2429.1,0.41173]
[1728344650798,0.8043,2429.2,2429.0,0.3865]
[1728344650999,0.8043,2429.2,2428.6,0.096]
[1728344651000,4.9211,2429.2,2428.6,0.096]
[1728344651296,0.41177,2428.9,2428.8,0.41178]
[1728344651994,0.41176,2429.0,2428.8,0.41178]
[1728344652200,0.4143,2428.9,2428.8,0.41178]
[1728344652497,0.82607,2428.9,2428.8,0.41178]
[1728344653296,0.82607,2428.9,2428.7,0.41179]
[1728344653500,0.39,2428.8,2428.7,0.41179]
[1728344654699,0.4143,2428.9,2428.7,0.41179]
[1728344654700,3.2078,2429.3,2429.0,0.41174]
[1728344654995,3.2078,2429.3,2429.2,0.41171]
[1728344655790,3.2078,2429.3,2429.2,0.81591]
[1728344656193,3.2078,2429.3,2429.2,0.4042]
[1728344656600,3.2078,2429.3,2429.2,0.81591]
[1728344658229,0.41165,2429.6,2429.2,0.4042]
[1728344658404,0.41165,2429.6,2429.5,3.21]
[1728344659213,0.41165,2429.6,2429.5,3.62166]
[1728344659709,0.4053,2429.7,2429.5,3.62166]
[1728344659897,0.41165,2429.6,2429.5,3.62166]
[1728344660101,0.81694,2429.7,2429.5,3.62166]
[1728344660903,0.4053,2429.7,2429.5,3.62166]
[1728344661101,0.81694,2429.7,2429.5,3.62166]
[1728344662408,0.41165,2429.6,2429.5,3.62166]
[1728344664605,0.4116,2429.9,2429.5,3.21]
[1728344664810,0.4166,2429.8,2429.5,3.21]
[1728344665308,0.4166,2429.8,2429.7,0.41162]
[1728344665704,0.4166,2429.8,2429.7,3.62162]
[1728344666102,0.096,2430.3,2429.7,7.326]
[1728344666297,7.3428,2430.6,2429.7,7.326]
[1728344666298,0.82812,2430.4,2430.2,0.41154]
[1728344666504,0.82812,2430.4,2430.3,0.41153]
[1728344669311,0.4166,2430.4,2430.1,0.41155]
[1728344669715,0.41153,2430.3,2430.2,0.41154]
[1728344669907,0.82812,2430.4,2430.2,0.41154]
[1728344670309,0.4166,2430.4,2430.3,0.41153]
[1728344670518,0.4146,2430.8,2430.7,0.41146]
[1728344670717,0.8162,2430.8,2430.7,0.41146]
[1728344670913,1.22764,2430.8,2430.7,0.41146]
[1728344671114,0.81304,2430.8,2430.7,0.41146]
[1728344671316,0.81304,2430.8,2430.6,3.62147]
[1728344671610,0.4016,2430.8,2430.6,3.21]
[1728344671812,0.81304,2430.8,2430.7,0.41146]
[1728344672015,0.4016,2430.8,2430.7,0.41146]
[1728344677925,0.5106,2431.1,2431.0,0.41141]
[1728344677926,0.096,2431.1,2431.0,0.41141]
[1728344678118,0.83219,2431.2,2431.0,0.4114]
[1728344678418,0.41142,2431.0,2430.8,0.81674]
[1728344680320,0.4208,2431.2,2430.8,3.6153]
[1728344680521,0.41139,2431.1,2430.9,0.41141]
[1728344680921,0.4208,2431.2,2430.9,0.41141]
[1728344681121,0.41141,2431.0,2430.8,4.02674]
[1728344681424,0.41143,2430.9,2430.8,3.6153]
[1728344681616,0.4208,2431.2,2430.8,4.02674]
[1728344681817,0.41142,2431.0,2430.8,4.02674]
[1728344682421,0.41142,2431.0,2430.9,0.41143]
[1728344687527,3.6286,2431.2,2430.9,0.41143]
[1728344687528,0.4114,2431.1,2430.9,0.41143]
[1728344688419,0.4114,2431.1,2430.9,1.89143]
[1728344688821,0.41141,2431.1,2430.9,1.89143]
[1728344689922,4.03998,2431.2,2431.1,0.41139]
[1728344690122,8.15358,2431.2,2431.1,0.41139]
[1728344691224,4.03998,2431.2,2431.1,1.89139]
[1728344693233,0.83218,2431.2,2431.1,1.89139]
[1728344696026,0.4208,2431.2,2431.1,1.89139]
[1728344697332,0.83218,2431.2,2431.1,1.89139]
[1728344697539,0.41142,2431.0,2430.9,1.89142]
[1728344698329,0.4114,2431.1,2431.0,0.4114]
[1728344698933,0.41141,2431.0,2430.9,0.41142]
[1728344699131,0.41143,2430.9,2430.8,1.48]
[1728344699333,0.41145,2430.8,2430.7,0.41145]
[1728344699533,0.82845,2430.8,2430.7,0.41145]
[1728344700634,0.41147,2430.7,2430.6,0.41147]
[1728344700840,4.5306,2430.8,2430.7,0.41146]
[1728344700841,0.82845,2430.8,2430.7,0.41146]
[1728344701043,0.82845,2430.8,2430.6,1.89147]
[1728344701044,0.41146,2430.7,2430.6,1.89147]
[1728344701339,0.41146,2430.7,2430.6,1.48]
[1728344701641,0.417,2430.8,2430.4,2.2706]
[1728344701937,0.41148,2430.6,2430.5,0.41149]
[1728344702167,0.41147,2430.7,2430.5,0.41149]
[1728344702834,0.417,2430.8,2430.5,1.48]
[1728344703136,0.417,2430.8,2430.4,0.3855]
[1728344703137,3.2078,2430.6,2430.2,1.576]
[1728344703337,0.41154,2430.3,2430.0,2.31757]
[1728344703535,1.86184,2430.5,2430.1,1.48]
[1728344703536,0.3897,2430.2,2430.1,1.48]
[1728344703734,0.3897,2430.2,2430.1,1.89156]
[1728344704541,0.3897,2430.2,2430.1,0.41156]
[1728344707447,3.2078,2430.6,2430.5,0.41149]
[1728344707745,3.2078,2430.6,2430.5,3.62149]
[1728344708975,4.231,2431.1,2430.8,0.41143]
[1728344708976,3.2078,2430.9,2430.8,0.41143]
[1728344709242,3.2078,2430.9,2430.8,3.62143]
[1728344710051,0.81951,2431.0,2430.8,3.62143]
[1728344710248,0.4081,2431.0,2430.9,0.41143]
[1728344711448,0.81951,2431.0,2430.9,0.41143]
[1728344711847,0.81951,2431.0,2430.8,3.62143]
[1728344712749,0.41143,2430.9,2430.8,3.62143]
[1728344713442,7.3214,2430.9,2430.2,3.21]
[1728344713649,0.41151,2430.4,2430.3,0.90043]
[1728344713849,3.2078,2430.6,2430.0,3.21]
[1728344714052,0.41154,2430.3,2430.0,3.6029]
[1728344714351,0.3883,2430.2,2430.1,0.41156]
[1728344714543,0.3883,2430.2,2430.1,3.62156]
[1728344715152,3.2078,2430.6,2430.1,7.3252]
[1728344715361,3.2078,2430.6,2430.4,3.21]
[1728344715362,0.4115,2430.5,2430.4,3.21]
[1728344715548,0.4115,2430.5,2430.4,3.6191]
[1728344715746,0.41152,2430.4,2430.2,3.62153]
[1728344716050,0.3883,2430.6,2430.3,0.41153]
[1728344716451,0.41149,2430.5,2430.3,0.41153]
[1728344716754,0.3883,2430.6,2430.3,0.41153]
[1728344717050,0.41149,2430.5,2430.3,0.41153]
[1728344717451,0.41151,2430.4,2430.3,0.41153]
[1728344718962,0.3883,2430.6,2430.2,3.21]
[1728344719147,0.3883,2430.6,2430.4,0.4115]
[1728344719356,0.41149,2430.5,2430.4,0.4115]
[1728344721160,0.41151,2430.4,2430.3,0.83202]
[1728344721361,0.41153,2430.3,2430.2,3.62153]
[1728344722055,0.41152,2430.4,2430.3,0.41153]
[1728344722253,3.5961,2430.6,2430.3,0.41153]
[1728344722463,0.41151,2430.4,2430.3,0.41153]
[1728344723252,0.41151,2430.4,2430.2,3.21]
[1728344723453,0.41151,2430.4,2430.2,3.62153]
[1728344723853,0.41151,2430.4,2430.3,0.41153]
[1728344724255,0.41151,2430.4,2430.2,3.62153]
[1728344724563,0.41151,2430.4,2430.3,0.41153]
[1728344724959,3.5961,2430.6,2430.2,3.21]
[1728344725357,3.5961,2430.6,2430.5,0.41149]
[1728344726460,4.00758,2430.6,2430.5,0.41149]
[1728344726962,3.5961,2430.6,2430.5,0.41149]
[1728344727161,0.3883,2430.6,2430.5,0.41149]
[1728344727663,0.41145,2430.8,2430.7,0.41146]
[1728344728053,0.4143,2430.9,2430.5,0.7821]
[1728344728254,0.41147,2430.7,2430.6,0.41147]
[1728344728887,0.41148,2430.6,2430.5,0.3941]
[1728344730565,0.41149,2430.5,2430.4,0.4115]
[1728344730857,0.82709,2430.5,2430.4,0.4115]
[1728344731164,0.4156,2430.5,2430.4,0.4115]
[1728344737865,0.82415,2430.8,2430.7,0.41146]
[1728344738167,0.4127,2430.8,2430.7,0.41146]
[1728344738363,0.82414,2430.8,2430.7,0.41146]
[1728344738984,0.41146,2430.7,2430.6,0.83687]
[1728344739267,0.82706,2430.7,2430.6,0.4254]
[1728344739475,0.41149,2430.5,2430.3,0.41151]
[1728344739769,0.41149,2430.5,2430.3,0.41152]
[1728344740364,0.41149,2430.5,2430.4,0.41151]
[1728344740564,0.41149,2430.5,2430.3,0.41151]
[1728344740770,0.41149,2430.5,2430.2,4.0494]
[1728344740967,0.41149,2430.5,2430.4,0.41151]
[1728344741171,0.41149,2430.5,2430.2,4.0494]
[1728344741363,0.41149,2430.5,2430.4,0.41151]
[1728344743662,0.4115,2430.5,2430.4,0.4115]
[1728344743867,0.4156,2430.7,2430.4,0.4115]
[1728344743868,0.41149,2430.6,2430.4,0.4115]
[1728344744069,0.41149,2430.5,2430.4,0.4115]
[1728344750373,0.41149,2430.5,2430.4,1.8915]
[1728344750572,1.2334083,2430.7,2430.4,1.48]
[1728344750774,0.4156,2430.7,2430.6,0.41148]
[1728344751276,0.4156,2430.7,2430.6,1.25118]
[1728344751669,0.82706,2430.7,2430.6,1.25118]
[1728344751872,0.82706,2430.7,2430.6,0.83908]
[1728344752974,0.82706,2430.7,2430.6,0.4276]
[1728344753376,0.41149,2430.5,2430.4,0.4115]
[1728344753580,0.41149,2430.5,2430.3,1.48]
[1728344753581,0.41151,2430.4,2430.3,1.89151]
[1728344754282,0.41151,2430.4,2430.3,6.00591]
[1728344754478,0.7988,2430.5,2430.4,0.41151]
[1728344755083,0.3873,2430.5,2430.3,1.48]
[1728344755281,0.41151,2430.4,2430.3,1.89151]
[1728344755586,0.3873,2430.5,2430.3,1.48]
[1728344755780,0.79881,2430.5,2430.4,0.41151]
[1728344759089,0.3873,2430.5,2430.3,1.48]
[1728344759276,0.3873,2430.5,2430.2,0.4276]
[1728344759480,6.10386,2430.5,2430.1,0.41156]
[1728344759683,0.81836648,2430.4,2430.1,0.41156]
[1728344760184,0.41155,2430.2,2430.1,0.41155]
[1728344760389,0.3869,2430.3,2430.0,1.9078]
[1728344760390,0.79844,2430.3,2430.0,1.9078]
[1728344760582,0.79844,2430.3,2430.2,0.41155]
[1728344761586,0.3869,2430.3,2430.2,1.89155]
[1728344762685,0.4115,2430.5,2430.2,1.48]
[1728344762884,0.814,2430.5,2430.4,1.89151]
[1728344764388,0.4025,2430.5,2430.4,2.31331]
[1728344764993,0.81399,2430.5,2430.4,2.31331]
[1728344765287,0.096,2430.9,2430.4,12.0162]
[1728344765492,0.41143,2430.9,2430.8,0.41144]
[1728344765786,0.41143,2430.9,2430.8,1.23254]
[1728344766882,0.82522,2431.0,2430.8,1.23254]
[1728344767292,0.82522,2431.0,2430.9,0.41143]
[1728344767802,0.41143,2430.9,2430.8,1.23253]
[1728344770188,0.41143,2430.9,2430.8,0.8211]
[1728344770383,0.41143,2430.9,2430.8,0.3957]
[1728344770688,0.41146,2430.7,2430.6,1.48]
[1728344770995,0.41146,2430.7,2430.6,1.89148]
[1728344771183,0.41146,2430.7,2430.6,0.41148]
[1728344771586,0.82176,2430.8,2430.6,0.41148]
[1728344771787,0.41146,2430.7,2430.6,0.41148]
[1728344772889,3.6181,2430.8,2430.5,0.4162]
[1728344773092,0.4149,2430.6,2430.4,0.79981]
[1728344773294,0.82639,2430.6,2430.4,0.79981]
[1728344774495,0.41149,2430.5,2430.4,0.79981]
[1728344774693,0.82639,2430.6,2430.4,0.79981]
[1728344775193,0.82639,2430.6,2430.4,0.3883]
[1728344775596,0.82639,2430.6,2430.4,0.7998]
[1728344775981,0.4149,2430.6,2430.5,1.89149]
[1728344785492,3.61923,2430.9,2430.8,0.41144]
[1728344785697,4.03603,2430.9,2430.8,0.41144]
[1728344785895,3.6246,2430.9,2430.7,1.89145]
[1728344786199,4.03603,2430.9,2430.8,0.4274]
[1728344787303,0.41146,2430.7,2430.6,0.80267]
[1728344787791,0.41145,2430.8,2430.7,0.41145]
[1728344788293,0.41144,2430.8,2430.6,0.80267]
[1728344789497,0.41144,2430.8,2430.7,0.41146]
[1728344789996,0.41144,2430.8,2430.6,0.3912]
[1728344789997,3.6246,2430.9,2430.6,0.3912]
[1728344790189,4.03603,2430.9,2430.8,0.41144]
[1728344790992,4.03603,2430.9,2430.8,0.80374]
[1728344791194,3.2078,2430.9,2430.8,0.80374]
[1728344791402,0.4181,2431.3,2431.2,0.41136]
[1728344791699,3.3038,2431.7,2431.6,0.41131]
[1728344791994,3.2078,2431.7,2431.6,1.89131]
[1728344792395,1.3249,2432.2,2431.6,0.41131]
[1728344792697,0.41122,2432.1,2431.7,1.48]
[1728344793192,0.41124,2432.0,2431.7,1.89129]
[1728344793398,3.61903,2432.1,2431.8,0.41127]
[1728344793601,3.61903,2432.1,2431.8,1.89127]
[1728344794096,3.61903,2432.1,2431.8,1.48]
[1728344794491,3.61903,2432.1,2431.7,3.62128]
[1728344794687,0.41123,2432.1,2431.7,3.62128]
[1728344795106,0.41123,2432.1,2431.8,0.41127]
[1728344795902,0.41123,2432.1,2431.8,0.4043]
[1728344796099,0.41123,2432.1,2431.9,0.41125]
[1728344796400,1.64012,2432.2,2431.9,0.41125]
[1728344796600,1.64011,2432.2,2431.8,0.4043]
[1728344796900,1.64011,2432.2,2432.0,0.41124]
[1728344798326,1.2289,2432.2,2431.8,0.4043]
[1728344798524,1.2289,2432.2,2432.1,0.41122]
[1728344799109,1.64011,2432.2,2432.1,0.41122]
[1728344799508,1.64011,2432.2,2432.0,0.41123]
[1728344799816,0.4181,2432.2,2431.9,3.21]
[1728344800009,0.4181,2432.2,2432.1,3.62122]
[1728344801121,0.82931,2432.2,2432.0,0.41123]
[1728344801611,0.403,2432.1,2432.0,0.41123]
[1728344802810,0.81422,2432.1,2432.0,0.41123]
[1728344803202,1.21152,2432.1,2432.0,0.41123]
[1728344803599,0.41126,2431.9,2431.8,0.81557]
[1728344803874,0.8003,2432.1,2431.8,0.41127]
[1728344803875,0.41126,2432.0,2431.8,0.41127]
[1728344804804,0.41125,2432.0,2431.8,0.41127]
[1728344806109,0.41126,2431.9,2431.5,5.5232]
[1728344806406,0.41125,2432.0,2431.8,0.41126]
[1728344807501,1.43935,2432.0,2431.5,3.6242]
[1728344807755,1.02815,2431.9,2431.5,3.6242]
[1728344807924,0.4113,2431.7,2431.5,0.41131]
[1728344808311,0.4071,2431.8,2431.5,0.41133]
[1728344808608,0.3979,2431.6,2431.5,0.41133]
[1728344808999,0.7882,2431.6,2431.5,0.41133]
[1728344810002,0.41133,2431.5,2431.4,0.41134]
[1728344810200,0.7882,2431.6,2431.3,3.21]
[1728344810396,0.3952,2431.4,2431.3,3.62136]
[1728344816408,0.3952,2431.4,2431.3,1.89136]
[1728344817113,0.41136,2431.3,2431.2,0.8311]
[1728344817317,1.64195,2431.4,2431.2,1.48]
[1728344817512,1.64195,2431.4,2431.3,0.41136]
[1728344818813,1.64195,2431.4,2431.2,1.89136]
[1728344819811,1.2306,2431.4,2431.2,1.48]
[1728344820016,0.41136,2431.3,2431.2,1.48]
[1728344820217,1.2306,2431.4,2431.2,1.48]
[1728344820420,1.64195,2431.4,2431.3,0.41136]
[1728344820616,1.64195,2431.4,2431.2,1.89136]
[1728344821021,1.64195,2431.4,2431.2,1.48]
[1728344821317,1.64195,2431.4,2431.2,1.89137]
[1728344821318,0.41136,2431.3,2431.2,1.89137]
[1728344821713,1.64195,2431.4,2431.3,0.41136]
[1728344822215,0.3952,2431.4,2431.3,0.41136]
[1728344822610,0.80654,2431.4,2431.3,0.41136]
[1728344826511,0.80655,2431.4,2431.3,0.41136]
[1728344827025,0.3952,2431.4,2431.1,1.48]
[1728344827219,0.3952,2431.4,2430.9,4.0165]
[1728344827220,1.48,2431.2,2430.7,4.197]
[1728344827426,1.02841,2431.3,2430.4,0.9231]
[1728344827427,3.29629,2431.1,2430.4,0.9231]
[1728344827722,3.2078,2430.9,2430.7,0.41145]
[1728344827934,0.41144,2430.8,2430.7,0.41145]
[1728344828116,3.61924,2430.9,2430.6,1.48]
[1728344828321,0.41145,2430.8,2430.6,1.48]
[1728344828713,3.2078,2430.9,2430.6,1.48]
[1728344828923,3.61924,2430.9,2430.7,0.41145]
[1728344829116,3.61924,2430.9,2430.6,1.48]
[1728344829117,0.41145,2430.8,2430.6,1.89147]
[1728344829324,3.61923,2430.9,2430.7,0.41145]
[1728344829915,0.41144,2430.8,2430.7,0.41145]
[1728344830123,0.41144,2430.8,2430.6,1.48]
[1728344830318,0.41144,2430.8,2430.6,1.89147]
[1728344830626,0.41144,2430.8,2430.7,0.41146]
[1728344831732,3.2078,2430.9,2430.6,1.48]
[1728344831920,0.41144,2430.9,2430.8,1.89144]
[1728344832627,0.41144,2430.9,2430.8,1.48]
[1728344834230,0.41149,2430.5,2430.4,1.2386]
[1728344834421,1.48,2430.7,2430.2,1.48]
[1728344834733,1.48,2430.7,2430.0,1.48]
[1728344834734,0.4049,2430.4,2430.0,1.48]
[1728344834929,3.2078,2430.3,2430.0,1.48]
[1728344835230,0.41155,2430.2,2430.1,1.89156]
[1728344835728,0.41155,2430.2,2430.1,1.48]
[1728344836227,0.41155,2430.2,2430.1,1.89156]
[1728344840538,0.41155,2430.2,2430.1,1.48]
[1728344842440,0.41155,2430.2,2430.1,1.89156]
[1728344842944,0.41155,2430.2,2430.1,1.48]
[1728344845642,0.41155,2430.2,2430.1,1.89156]
[1728344848939,0.41155,2430.2,2430.1,1.48]
[1728344849139,0.41157,2430.1,2430.0,1.89157]
[1728344849436,0.81205,2430.2,2430.1,0.41156]
[1728344849643,0.41155,2430.2,2430.1,0.41156]
[1728344850832,0.41155,2430.2,2430.1,0.79836]
[1728344854139,0.4069,2430.3,2430.1,0.3868]
[1728344854340,0.4069,2430.3,2430.2,0.41155]
[1728344854341,0.81844,2430.3,2430.2,0.41155]
[1728344854638,3.2078,2430.6,2430.5,0.41149]
[1728344854844,3.2078,2430.6,2430.5,1.48]
[1728344854845,0.4238,2430.6,2430.5,1.48]
[1728344855045,0.4238,2430.6,2430.4,0.41151]
[1728344855046,0.4115,2430.5,2430.4,0.41151]
[1728344855842,0.4238,2430.6,2430.5,0.41149]
[1728344856041,0.4238,2430.6,2430.5,0.80259]
[1728344857649,0.41144,2430.8,2430.7,0.41145]
[1728344857954,0.80384,2430.8,2430.7,0.41145]
[1728344860246,0.80384,2430.8,2430.6,0.3909]
[1728344860451,0.3924,2430.8,2430.6,0.3909]
[1728344860645,0.80386,2430.8,2430.7,0.41146]
[1728344862256,0.41146,2430.7,2430.6,0.80237]
[1728344863449,0.41146,2430.7,2430.6,0.3909]
[1728344863653,0.41146,2430.7,2430.6,0.80238]
[1728344865549,0.4115,2430.5,2430.4,0.4115]
[1728344866054,0.4115,2430.5,2430.4,4.5259]
[1728344866446,0.3924,2430.8,2430.4,4.1144]
[1728344866746,0.41146,2430.7,2430.6,0.41146]
[1728344866945,0.41146,2430.7,2430.6,0.82366]
[1728344869752,0.80385,2430.8,2430.7,0.41146]
[1728344869959,0.80385,2430.8,2430.7,0.80976]
[1728344871352,0.80385,2430.8,2430.7,0.3983]
[1728344872563,0.80385,2430.8,2430.7,0.80976]
[1728344873154,0.80385,2430.8,2430.7,0.3983]
[1728344874454,0.80385,2430.8,2430.7,0.80976]
[1728344874952,0.80385,2430.8,2430.7,0.3983]
[1728344875554,0.80385,2430.8,2430.7,0.80976]
[1728344877058,0.80385,2430.8,2430.6,0.41147]
[1728344877059,0.41146,2430.7,2430.6,0.41147]
[1728344878161,0.80386,2430.8,2430.7,0.41146]
[1728344881968,5.986,2430.8,2430.0,4.33273]
[1728344882162,0.41153,2430.4,2430.3,0.41152]
[1728344882970,0.3985,2430.5,2430.1,1.8696]
[1728344883169,0.82754,2430.3,2430.2,0.41155]
[1728344883476,0.82754,2430.3,2429.9,4.197]
[1728344883477,2.92485,2430.3,2429.9,4.197]
[1728344883666,2.92485,2430.3,2429.9,0.4116]
[1728344883667,0.41158,2430.0,2429.9,0.4116]
[1728344884569,4.04207,2430.1,2430.0,0.41158]
[1728344885969,4.04207,2430.1,2429.8,0.3896]
[1728344886176,0.41158,2430.0,2429.9,0.41159]
[1728344886565,3.6305,2430.1,2429.8,0.3896]
[1728344886772,4.04207,2430.1,2429.9,0.41158]
[1728344887271,4.04207,2430.1,2429.8,0.3896]
[1728344887272,4.04207,2430.1,2430.0,0.41158]
[1728344887471,4.04207,2430.1,2429.9,0.41158]
[1728344888068,4.04207,2430.1,2429.9,0.41159]
[1728344888371,0.41158,2430.0,2429.9,0.41159]
[1728344888988,3.6305,2430.1,2429.8,0.8012]
[1728344889165,0.41159,2430.0,2429.9,0.4116]
[1728344889369,0.41159,2430.0,2429.8,0.4116]
[1728344889674,0.41159,2430.0,2429.8,0.41161]
[1728344890072,5.1105,2430.1,2429.8,0.41161]
[1728344890271,5.1105,2430.1,2429.7,0.41162]
[1728344890272,0.41162,2429.8,2429.7,0.41162]
[1728344890678,0.41162,2429.8,2429.6,0.41164]
[1728344890679,0.41163,2429.7,2429.6,0.41164]
[1728344890871,0.81833,2429.7,2429.6,0.41164]
[1728344893070,0.4067,2429.7,2429.4,1.48]
[1728344893270,0.81834,2429.7,2429.5,0.41165]
[1728344893669,0.81834,2429.7,2429.6,0.41165]
[1728344894473,0.4067,2429.7,2429.4,1.48]
[1728344894675,0.4067,2429.7,2429.3,0.419]
[1728344894676,0.41168,2429.4,2429.3,0.419]
[1728344894874,0.41168,2429.4,2428.9,1.48]
[1728344894875,0.41172,2429.2,2428.9,1.48]
[1728344895174,0.41174,2429.1,2429.0,0.41174]
[1728344895574,1.42648,2429.3,2428.9,2.69446]
[1728344895778,0.41175,2429.1,2428.9,2.2827]
[1728344895977,0.41175,2429.1,2429.0,0.41175]
[1728344897575,0.41175,2429.0,2428.9,2.69446]
[1728344897877,0.41175,2429.0,2428.9,1.21446]
[1728344898475,0.41174,2429.1,2428.9,0.8027]
[1728344898871,0.41174,2429.1,2428.9,1.21445]
[1728344899571,0.82495,2429.0,2428.9,1.21445]
[1728344899769,3.2078,2429.2,2428.9,2.2827]
[1728344900067,3.2078,2429.2,2429.1,1.89173]
[1728344900068,0.82492,2429.2,2429.1,1.89173]
[1728344900378,0.41172,2429.2,2429.1,1.89173]
[1728344900773,0.41172,2429.2,2429.1,1.48]
[1728344901275,0.4132,2429.3,2428.9,2.2827]
[1728344901276,0.41175,2429.0,2428.9,2.2827]
[1728344901883,0.41175,2429.0,2428.9,2.69447]
[1728344902076,0.41175,2429.0,2428.9,1.21447]
[1728344902272,0.41175,2429.1,2428.9,1.21447]
[1728344902471,0.3941,2429.2,2428.9,1.21447]
[1728344902669,0.41175,2429.0,2428.9,1.21447]